[Event "Titled Tuesday Blitz May 03 Early 2022"]
[White "Gallegos Diaz, Carlos Alberto"]
[Black "Preotu, Razvan"]
[WhiteFideId "3900886"]
[BlackFideId "2613280"]
[WhiteElo "2433"]
[BlackElo "2746"]
[Result "0-1"]
[Round "01"]
[TimeControl "180+1"]
[Date "2022.05.03"]
[WhiteClock "0:00:01"]
[BlackClock "0:00:34"]

1. e4 {[%clk 0:03:00]}  c5 {[%clk 0:03:00]} 2. Nf3 {[%clk 0:02:59]}  d6 {[%clk 0:03:00]} 3. d3 {[%clk 0:02:58]}  Nc6 {[%clk 0:02:59]} 4. Nbd2 {[%clk 0:02:57]}  g6 {[%clk 0:02:59]} 5. Be2 {[%clk 0:02:57]}  Bg7 {[%clk 0:03:00]} 6. O-O {[%clk 0:02:57]}  e5 {[%clk 0:02:58]} 7. h3 {[%clk 0:02:56]}  Nge7 {[%clk 0:02:58]} 8. c3 {[%clk 0:02:56]}  O-O {[%clk 0:02:58]} 9. a3 {[%clk 0:02:56]}  h6 {[%clk 0:02:47]} 10. b4 {[%clk 0:02:51]}  g5 {[%clk 0:02:46]} 11. Re1 {[%clk 0:02:48]}  Ng6 {[%clk 0:02:46]} 12. Bf1 {[%clk 0:02:47]}  g4 {[%clk 0:02:40]} 13. hxg4 {[%clk 0:02:44]}  Bxg4 {[%clk 0:02:41]} 14. b5 {[%clk 0:02:44]}  Nce7 {[%clk 0:02:37]} 15. Bb2 {[%clk 0:02:43]}  f5 {[%clk 0:02:25]} 16. exf5 {[%clk 0:02:19]}  Nxf5 {[%clk 0:02:11]} 17. Qb3+ {[%clk 0:02:15]}  Kh8 {[%clk 0:02:12]} 18. Nh2 {[%clk 0:02:14]}  Bh5 {[%clk 0:02:12]} 19. g3 {[%clk 0:02:02]}  d5 {[%clk 0:01:49]} 20. Bg2 {[%clk 0:01:51]}  c4 {[%clk 0:01:49]} 21. dxc4 {[%clk 0:01:44]}  e4 {[%clk 0:01:43]} 22. Ndf1 {[%clk 0:01:24]}  Ne5 {[%clk 0:01:42]} 23. cxd5 {[%clk 0:01:17]}  Nd3 {[%clk 0:01:31]} 24. Bxe4 {[%clk 0:01:02]}  Nxf2 {[%clk 0:01:24]} 25. c4 {[%clk 0:00:34]}  Qb6 {[%clk 0:00:50]} 26. Bxg7+ {[%clk 0:00:27]}  Nxg7 {[%clk 0:00:49]} 27. Qe3 {[%clk 0:00:20]}  Qf6 {[%clk 0:00:45]} 28. Kg2 {[%clk 0:00:17]}  Rae8 {[%clk 0:00:44]} 29. Qf4 {[%clk 0:00:15]}  Qxf4 {[%clk 0:00:41]} 30. gxf4 {[%clk 0:00:16]}  Nxe4 {[%clk 0:00:41]} 31. Re3 {[%clk 0:00:02]}  Nf5 {[%clk 0:00:35]} 32. Rh3 {[%clk 0:00:01]}  Nf6 {[%clk 0:00:34]} 0-1


[Site "https://www.chess.com"]

[Event "Titled Tuesday Blitz May 03 Early 2022"]
[White "Gharibyan, Mamikon"]
[Black "Devaev, Alexander"]
[WhiteFideId "13308300"]
[BlackFideId "4169395"]
[WhiteElo "2769"]
[BlackElo "2446"]
[Result "1-0"]
[Round "01"]
[TimeControl "180+1"]
[Date "2022.05.03"]
[WhiteClock "0:00:10"]
[BlackClock "0:00:03"]

1. c4 {[%clk 0:03:00]}  c5 {[%clk 0:02:59]} 2. Nc3 {[%clk 0:02:57]}  e6 {[%clk 0:03:00]} 3. e3 {[%clk 0:02:46]}  Nf6 {[%clk 0:02:57]} 4. d4 {[%clk 0:02:44]}  cxd4 {[%clk 0:02:58]} 5. exd4 {[%clk 0:02:41]}  d5 {[%clk 0:02:58]} 6. Nf3 {[%clk 0:02:39]}  Bb4 {[%clk 0:02:59]} 7. cxd5 {[%clk 0:02:25]}  Nxd5 {[%clk 0:02:59]} 8. Bd2 {[%clk 0:02:25]}  Nc6 {[%clk 0:02:59]} 9. a3 {[%clk 0:02:20]}  Be7 {[%clk 0:02:53]} 10. Bd3 {[%clk 0:02:17]}  Bf6 {[%clk 0:02:53]} 11. Ne4 {[%clk 0:01:54]}  O-O {[%clk 0:02:48]} 12. Nxf6+ {[%clk 0:01:48]}  Nxf6 {[%clk 0:02:44]} 13. Bg5 {[%clk 0:01:46]}  Qd6 {[%clk 0:02:42]} 14. Bxf6 {[%clk 0:01:44]}  gxf6 {[%clk 0:02:41]} 15. O-O {[%clk 0:01:44]}  Rd8 {[%clk 0:02:37]} 16. Qe2 {[%clk 0:01:40]}  Ne7 {[%clk 0:02:22]} 17. Rac1 {[%clk 0:01:32]}  Ng6 {[%clk 0:02:21]} 18. Qe3 {[%clk 0:01:19]}  Bd7 {[%clk 0:02:07]} 19. h4 {[%clk 0:01:07]}  Bc6 {[%clk 0:01:54]} 20. g3 {[%clk 0:01:02]}  Rac8 {[%clk 0:01:25]} 21. h5 {[%clk 0:00:59]}  Nf8 {[%clk 0:01:25]} 22. Rcd1 {[%clk 0:00:57]}  Kg7 {[%clk 0:01:19]} 23. h6+ {[%clk 0:00:54]}  Kh8 {[%clk 0:01:18]} 24. Be4 {[%clk 0:00:51]}  b6 {[%clk 0:01:09]} 25. d5 {[%clk 0:00:49]}  Bxd5 {[%clk 0:01:00]} 26. Bxd5 {[%clk 0:00:48]}  exd5 {[%clk 0:01:01]} 27. Rfe1 {[%clk 0:00:47]}  Ng6 {[%clk 0:00:55]} 28. Nd4 {[%clk 0:00:47]}  Qe5 {[%clk 0:00:51]} 29. Qf3 {[%clk 0:00:42]}  Qg5 {[%clk 0:00:51]} 30. Kg2 {[%clk 0:00:36]}  Ne5 {[%clk 0:00:43]} 31. Qf4 {[%clk 0:00:35]}  Qxf4 {[%clk 0:00:31]} 32. gxf4 {[%clk 0:00:36]}  Rg8+ {[%clk 0:00:32]} 33. Kf1 {[%clk 0:00:33]}  Ng4 {[%clk 0:00:24]} 34. Nf5 {[%clk 0:00:32]}  Rg6 {[%clk 0:00:25]} 35. Ne7 {[%clk 0:00:28]}  Rd8 {[%clk 0:00:20]} 36. Nxg6+ {[%clk 0:00:25]}  hxg6 {[%clk 0:00:21]} 37. Re7 {[%clk 0:00:24]}  Nxh6 {[%clk 0:00:21]} 38. Rxa7 {[%clk 0:00:24]}  Kg7 {[%clk 0:00:21]} 39. Rb7 {[%clk 0:00:23]}  Rd6 {[%clk 0:00:21]} 40. a4 {[%clk 0:00:22]}  d4 {[%clk 0:00:19]} 41. Ke2 {[%clk 0:00:22]}  Nf5 {[%clk 0:00:20]} 42. b4 {[%clk 0:00:22]}  Re6+ {[%clk 0:00:14]} 43. Kd3 {[%clk 0:00:21]}  Rc6 {[%clk 0:00:14]} 44. Ra1 {[%clk 0:00:17]}  Rc3+ {[%clk 0:00:11]} 45. Ke2 {[%clk 0:00:17]}  Rc2+ {[%clk 0:00:11]} 46. Kf3 {[%clk 0:00:15]}  Rc6 {[%clk 0:00:11]} 47. a5 {[%clk 0:00:15]}  bxa5 {[%clk 0:00:12]} 48. bxa5 {[%clk 0:00:16]}  d3 {[%clk 0:00:13]} 49. a6 {[%clk 0:00:15]}  Nd6 {[%clk 0:00:07]} 50. Rd7 {[%clk 0:00:13]}  Nb5 {[%clk 0:00:07]} 51. Rxd3 {[%clk 0:00:12]}  f5 {[%clk 0:00:06]} 52. a7 {[%clk 0:00:11]}  Nxa7 {[%clk 0:00:06]} 53. Rxa7 {[%clk 0:00:12]}  Rc4 {[%clk 0:00:06]} 54. Rdd7 {[%clk 0:00:12]}  g5 {[%clk 0:00:05]} 55. Rxf7+ {[%clk 0:00:11]}  Kg6 {[%clk 0:00:05]} 56. fxg5 {[%clk 0:00:12]}  Kxg5 {[%clk 0:00:02]} 57. Ra5 {[%clk 0:00:12]}  Rf4+ {[%clk 0:00:01]} 58. Kg2 {[%clk 0:00:12]}  Rg4+ {[%clk 0:00:02]} 59. Kf1 {[%clk 0:00:12]}  Rf4 {[%clk 0:00:03]} 60. Ra3 {[%clk 0:00:10]}  Kg6 {[%clk 0:00:02]} 61. Rc7 {[%clk 0:00:10]}  Rd4 {[%clk 0:00:02]} 62. Rc6+ {[%clk 0:00:10]}  Kg5 {[%clk 0:00:02]} 63. Rg3+ {[%clk 0:00:10]}  Kf4 {[%clk 0:00:03]} 64. Kg2 {[%clk 0:00:10]} 1-0


[Site "https://www.chess.com"]

[Event "Titled Tuesday Blitz May 03 Early 2022"]
[White "Gottstein, Claudius-Thomas"]
[Black "Kouskoutis, Georgios-Alexandros"]
[WhiteFideId "4653327"]
[BlackFideId "4234049"]
[WhiteElo "2109"]
[BlackElo "2130"]
[Result "0-1"]
[Round "01"]
[TimeControl "180+1"]
[Date "2022.05.03"]
[WhiteClock "0:00:22"]
[BlackClock "0:00:42"]

1. e4 {[%clk 0:03:00]}  c5 {[%clk 0:02:58]} 2. Nf3 {[%clk 0:03:00]}  d6 {[%clk 0:02:58]} 3. Bb5+ {[%clk 0:03:00]}  Bd7 {[%clk 0:02:55]} 4. Bxd7+ {[%clk 0:03:00]}  Nxd7 {[%clk 0:02:56]} 5. O-O {[%clk 0:03:00]}  Ngf6 {[%clk 0:02:55]} 6. Qe2 {[%clk 0:03:00]}  e6 {[%clk 0:02:49]} 7. c3 {[%clk 0:03:00]}  Be7 {[%clk 0:02:42]} 8. d4 {[%clk 0:03:00]}  cxd4 {[%clk 0:02:43]} 9. cxd4 {[%clk 0:03:00]}  O-O {[%clk 0:02:39]} 10. Nc3 {[%clk 0:03:01]}  Nb6 {[%clk 0:02:39]} 11. Rd1 {[%clk 0:02:58]}  Rc8 {[%clk 0:02:37]} 12. h3 {[%clk 0:02:57]}  d5 {[%clk 0:02:31]} 13. e5 {[%clk 0:02:55]}  Nfd7 {[%clk 0:02:32]} 14. Bd2 {[%clk 0:02:49]}  Nc4 {[%clk 0:02:27]} 15. Be1 {[%clk 0:02:48]}  Bb4 {[%clk 0:01:59]} 16. Rac1 {[%clk 0:02:34]}  Qa5 {[%clk 0:01:40]} 17. a3 {[%clk 0:02:03]}  Bxc3 {[%clk 0:01:39]} 18. Bxc3 {[%clk 0:02:03]}  Qb6 {[%clk 0:01:40]} 19. h4 {[%clk 0:01:53]}  a5 {[%clk 0:01:33]} 20. Rd3 {[%clk 0:01:45]}  Rc6 {[%clk 0:01:26]} 21. Rcd1 {[%clk 0:01:39]}  Rfc8 {[%clk 0:01:24]} 22. Ng5 {[%clk 0:01:34]}  h6 {[%clk 0:01:21]} 23. Qh5 {[%clk 0:01:33]}  hxg5 {[%clk 0:01:10]} 24. hxg5 {[%clk 0:01:33]}  Nf8 {[%clk 0:01:11]} 25. Rh3 {[%clk 0:01:28]}  Ng6 {[%clk 0:01:11]} 26. Qh7+ {[%clk 0:01:15]}  Kf8 {[%clk 0:01:11]} 27. Rf3 {[%clk 0:01:16]}  Ke7 {[%clk 0:01:05]} 28. Qxg7 {[%clk 0:01:11]}  Rf8 {[%clk 0:01:05]} 29. Rdd3 {[%clk 0:00:39]}  Nxb2 {[%clk 0:00:56]} 30. Rf6 {[%clk 0:00:39]}  Nxd3 {[%clk 0:00:52]} 31. Rxg6 {[%clk 0:00:36]}  Rxc3 {[%clk 0:00:45]} 32. Rf6 {[%clk 0:00:23]}  Qxd4 {[%clk 0:00:41]} 33. g6 {[%clk 0:00:23]}  Rc1+ {[%clk 0:00:41]} 34. Kh2 {[%clk 0:00:22]}  Qh4# {[%clk 0:00:42]} 0-1


[Site "https://www.chess.com"]

[Event "Titled Tuesday Blitz May 03 Early 2022"]
[White "Hnydiuk, Aleksander"]
[Black "Pasti, Aron"]
[WhiteFideId "1109057"]
[BlackFideId "785857"]
[WhiteElo "2374"]
[BlackElo "2133"]
[Result "1-0"]
[Round "01"]
[TimeControl "180+1"]
[Date "2022.05.03"]
[WhiteClock "0:02:33"]
[BlackClock "0:01:42"]

1. Nf3 {[%clk 0:02:59]}  d5 {[%clk 0:02:42]} 2. d4 {[%clk 0:02:59]}  Nf6 {[%clk 0:02:41]} 3. c4 {[%clk 0:02:59]}  e6 {[%clk 0:02:41]} 4. g3 {[%clk 0:02:58]}  dxc4 {[%clk 0:02:41]} 5. Bg2 {[%clk 0:02:58]}  Nc6 {[%clk 0:02:42]} 6. Qa4 {[%clk 0:02:56]}  Bb4+ {[%clk 0:02:40]} 7. Bd2 {[%clk 0:02:56]}  Nd5 {[%clk 0:02:41]} 8. Qb5 {[%clk 0:02:55]}  O-O {[%clk 0:02:37]} 9. Qxc4 {[%clk 0:02:53]}  a6 {[%clk 0:02:32]} 10. O-O {[%clk 0:02:52]}  Qe8 {[%clk 0:02:30]} 11. Bxb4 {[%clk 0:02:47]}  Ndxb4 {[%clk 0:02:31]} 12. e4 {[%clk 0:02:41]}  b5 {[%clk 0:02:12]} 13. Qe2 {[%clk 0:02:37]}  Bb7 {[%clk 0:02:06]} 14. a3 {[%clk 0:02:35]}  f6 {[%clk 0:01:41]} 15. axb4 {[%clk 0:02:33]}  Nxb4 {[%clk 0:01:42]} 1-0


[Site "https://www.chess.com"]

[Event "Titled Tuesday Blitz May 03 Early 2022"]
[White "Hoffmann, Asa"]
[Black "Samant Aditya S"]
[WhiteFideId "2001470"]
[BlackFideId "35080580"]
[WhiteElo "2117"]
[BlackElo "1916"]
[Result "0-1"]
[Round "01"]
[TimeControl "180+1"]
[Date "2022.05.03"]
[WhiteClock "0:00:02"]
[BlackClock "0:00:06"]

1. d4 {[%clk 0:02:54]}  Nf6 {[%clk 0:02:59]} 2. Bg5 {[%clk 0:02:50]}  Ne4 {[%clk 0:02:59]} 3. Bf4 {[%clk 0:02:50]}  c5 {[%clk 0:03:00]} 4. f3 {[%clk 0:02:50]}  Qa5+ {[%clk 0:02:59]} 5. c3 {[%clk 0:02:50]}  Nf6 {[%clk 0:03:00]} 6. d5 {[%clk 0:02:50]}  Qb6 {[%clk 0:03:00]} 7. e4 {[%clk 0:02:49]}  Qxb2 {[%clk 0:02:52]} 8. Nd2 {[%clk 0:02:48]}  Qxc3 {[%clk 0:02:53]} 9. Bc7 {[%clk 0:02:48]}  d6 {[%clk 0:02:40]} 10. Rb1 {[%clk 0:02:47]}  Qe3+ {[%clk 0:02:32]} 11. Ne2 {[%clk 0:02:42]}  Na6 {[%clk 0:02:09]} 12. Nc4 {[%clk 0:02:34]}  Qh6 {[%clk 0:02:07]} 13. Ba5 {[%clk 0:02:32]}  g6 {[%clk 0:01:44]} 14. Bd2 {[%clk 0:02:30]}  Qg7 {[%clk 0:01:25]} 15. Bc3 {[%clk 0:02:16]}  Nc7 {[%clk 0:01:16]} 16. a4 {[%clk 0:02:10]}  g5 {[%clk 0:01:10]} 17. Ng3 {[%clk 0:01:53]}  Qg6 {[%clk 0:01:10]} 18. Bd3 {[%clk 0:01:50]}  Qh6 {[%clk 0:00:58]} 19. Bd2 {[%clk 0:01:44]}  Qh4 {[%clk 0:00:50]} 20. O-O {[%clk 0:01:39]}  Bg7 {[%clk 0:00:50]} 21. Re1 {[%clk 0:01:22]}  O-O {[%clk 0:00:45]} 22. Qc1 {[%clk 0:01:18]}  h6 {[%clk 0:00:38]} 23. Ne3 {[%clk 0:01:14]}  e6 {[%clk 0:00:32]} 24. dxe6 {[%clk 0:01:10]}  fxe6 {[%clk 0:00:33]} 25. Nc4 {[%clk 0:01:02]}  Nfe8 {[%clk 0:00:19]} 26. e5 {[%clk 0:01:00]}  d5 {[%clk 0:00:19]} 27. Nd6 {[%clk 0:01:00]}  Qd4+ {[%clk 0:00:16]} 28. Re3 {[%clk 0:00:50]}  Bxe5 {[%clk 0:00:16]} 29. Ne2 {[%clk 0:00:45]}  Bxh2+ {[%clk 0:00:11]} 30. Kxh2 {[%clk 0:00:44]}  Qh4+ {[%clk 0:00:12]} 31. Kg1 {[%clk 0:00:43]}  Nxd6 {[%clk 0:00:13]} 32. Qxc5 {[%clk 0:00:41]}  Nce8 {[%clk 0:00:13]} 33. Bc3 {[%clk 0:00:38]}  Nf7 {[%clk 0:00:11]} 34. Rb4 {[%clk 0:00:35]}  Qh5 {[%clk 0:00:10]} 35. Qd4 {[%clk 0:00:35]}  e5 {[%clk 0:00:10]} 36. Rxe5 {[%clk 0:00:35]}  Nxe5 {[%clk 0:00:11]} 37. Qxe5 {[%clk 0:00:35]}  Nf6 {[%clk 0:00:11]} 38. Qe7 {[%clk 0:00:29]}  Qf7 {[%clk 0:00:11]} 39. Qe5 {[%clk 0:00:19]}  Bd7 {[%clk 0:00:10]} 40. Rxb7 {[%clk 0:00:19]}  Rae8 {[%clk 0:00:10]} 41. Qd4 {[%clk 0:00:17]}  Qe7 {[%clk 0:00:08]} 42. Ng3 {[%clk 0:00:16]}  Qe3+ {[%clk 0:00:06]} 43. Qxe3 {[%clk 0:00:15]}  Rxe3 {[%clk 0:00:07]} 44. Bxf6 {[%clk 0:00:10]}  Rxf6 {[%clk 0:00:08]} 45. Rxd7 {[%clk 0:00:09]}  Rxd3 {[%clk 0:00:08]} 46. Kf2 {[%clk 0:00:08]}  Re6 {[%clk 0:00:08]} 47. Nf5 {[%clk 0:00:07]}  Kf8 {[%clk 0:00:08]} 48. Kg3 {[%clk 0:00:06]}  h5 {[%clk 0:00:08]} 49. Rxa7 {[%clk 0:00:05]}  Rd2 {[%clk 0:00:08]} 50. f4 {[%clk 0:00:05]}  Rd3+ {[%clk 0:00:07]} 51. Kf2 {[%clk 0:00:05]}  gxf4 {[%clk 0:00:07]} 52. Nh4 {[%clk 0:00:03]}  Ree3 {[%clk 0:00:06]} 53. Nf3 {[%clk 0:00:02]}  Ra3 {[%clk 0:00:05]} 54. a5 {[%clk 0:00:02]}  Ra2+ {[%clk 0:00:05]} 55. Kg1 {[%clk 0:00:02]}  Rea3 {[%clk 0:00:06]} 0-1


[Site "https://www.chess.com"]

[Event "Titled Tuesday Blitz May 03 Early 2022"]
[White "Horcajuelo Rocamora, Martin"]
[Black "Yurovskykh, Oleksandr"]
[WhiteFideId "24573027"]
[BlackFideId "14134020"]
[WhiteElo "1822"]
[BlackElo "2292"]
[Result "1-0"]
[Round "01"]
[TimeControl "180+1"]
[Date "2022.05.03"]
[WhiteClock "0:00:12"]
[BlackClock "0:00:15"]

1. e4 {[%clk 0:02:54]}  e6 {[%clk 0:02:57]} 2. d4 {[%clk 0:02:52]}  d5 {[%clk 0:02:57]} 3. exd5 {[%clk 0:02:52]}  exd5 {[%clk 0:02:58]} 4. Bd3 {[%clk 0:02:53]}  Nc6 {[%clk 0:02:57]} 5. c3 {[%clk 0:02:45]}  Bd6 {[%clk 0:02:57]} 6. Nf3 {[%clk 0:02:44]}  Nge7 {[%clk 0:02:57]} 7. O-O {[%clk 0:02:44]}  Bg4 {[%clk 0:02:54]} 8. h3 {[%clk 0:02:43]}  Bh5 {[%clk 0:02:54]} 9. Re1 {[%clk 0:02:37]}  Qd7 {[%clk 0:02:53]} 10. b4 {[%clk 0:02:32]}  O-O {[%clk 0:02:50]} 11. Bxh7+ {[%clk 0:02:22]}  Kh8 {[%clk 0:02:34]} 12. Bd3 {[%clk 0:02:14]}  Rae8 {[%clk 0:02:32]} 13. Bg5 {[%clk 0:02:10]}  f6 {[%clk 0:02:32]} 14. Bh4 {[%clk 0:02:02]}  a6 {[%clk 0:02:23]} 15. Nbd2 {[%clk 0:02:00]}  Nf5 {[%clk 0:02:05]} 16. Rxe8 {[%clk 0:01:43]}  Rxe8 {[%clk 0:02:05]} 17. Qc2 {[%clk 0:01:39]}  Nh6 {[%clk 0:01:45]} 18. Bg6 {[%clk 0:01:34]}  Bxg6 {[%clk 0:01:45]} 19. Qxg6 {[%clk 0:01:35]}  Qf7 {[%clk 0:01:41]} 20. Qxf7 {[%clk 0:01:33]}  Nxf7 {[%clk 0:01:42]} 21. Kf1 {[%clk 0:01:34]}  Nb8 {[%clk 0:01:38]} 22. Bg3 {[%clk 0:01:32]}  Bxg3 {[%clk 0:01:38]} 23. fxg3 {[%clk 0:01:32]}  Nd7 {[%clk 0:01:38]} 24. Kf2 {[%clk 0:01:25]}  Nd6 {[%clk 0:01:38]} 25. Re1 {[%clk 0:01:03]}  Rxe1 {[%clk 0:01:37]} 26. Nxe1 {[%clk 0:01:01]}  Nb6 {[%clk 0:01:37]} 27. Ke3 {[%clk 0:00:53]}  Na4 {[%clk 0:01:35]} 28. Kd3 {[%clk 0:00:53]}  Kg8 {[%clk 0:01:28]} 29. Nc2 {[%clk 0:00:43]}  Kf7 {[%clk 0:01:27]} 30. Ne3 {[%clk 0:00:42]}  Ke6 {[%clk 0:01:28]} 31. Nb3 {[%clk 0:00:40]}  Nb2+ {[%clk 0:01:21]} 32. Kc2 {[%clk 0:00:38]}  Na4 {[%clk 0:01:19]} 33. Nc5+ {[%clk 0:00:36]}  Nxc5 {[%clk 0:01:19]} 34. bxc5 {[%clk 0:00:37]}  Ne4 {[%clk 0:01:20]} 35. g4 {[%clk 0:00:31]}  g6 {[%clk 0:01:20]} 36. Kd3 {[%clk 0:00:29]}  Ng5 {[%clk 0:01:20]} 37. c4 {[%clk 0:00:16]}  c6 {[%clk 0:01:20]} 38. cxd5+ {[%clk 0:00:16]}  cxd5 {[%clk 0:01:21]} 39. Nf1 {[%clk 0:00:15]}  Kd7 {[%clk 0:01:19]} 40. Ng3 {[%clk 0:00:14]}  Ne6 {[%clk 0:01:19]} 41. Ne2 {[%clk 0:00:14]}  Kc6 {[%clk 0:01:16]} 42. g3 {[%clk 0:00:13]}  Kd7 {[%clk 0:01:05]} 43. h4 {[%clk 0:00:12]}  Ke7 {[%clk 0:01:05]} 44. Nf4 {[%clk 0:00:12]}  Nc7 {[%clk 0:01:01]} 45. Nxg6+ {[%clk 0:00:12]}  Kf7 {[%clk 0:01:01]} 46. Nf4 {[%clk 0:00:13]}  Ke7 {[%clk 0:01:02]} 47. h5 {[%clk 0:00:13]}  Kf7 {[%clk 0:01:02]} 48. Ne2 {[%clk 0:00:13]}  Kg7 {[%clk 0:01:03]} 49. Ke3 {[%clk 0:00:13]}  Ne6 {[%clk 0:01:01]} 50. Nf4 {[%clk 0:00:13]}  Nc7 {[%clk 0:01:01]} 51. Nd3 {[%clk 0:00:12]}  Kh6 {[%clk 0:01:01]} 52. Kf4 {[%clk 0:00:11]}  Ne6+ {[%clk 0:01:02]} 53. Ke3 {[%clk 0:00:11]}  Nc7 {[%clk 0:01:02]} 54. Kf4 {[%clk 0:00:10]}  Ne6+ {[%clk 0:01:02]} 55. Kf5 {[%clk 0:00:11]}  Nxd4+ {[%clk 0:01:02]} 56. Kxf6 {[%clk 0:00:12]}  Nf3 {[%clk 0:00:59]} 57. Nf4 {[%clk 0:00:11]}  d4 {[%clk 0:00:58]} 58. Ne6 {[%clk 0:00:11]}  d3 {[%clk 0:00:56]} 59. g5+ {[%clk 0:00:11]}  Kxh5 {[%clk 0:00:56]} 60. Nf4+ {[%clk 0:00:12]}  Kg4 {[%clk 0:00:57]} 61. Nxd3 {[%clk 0:00:12]}  Nxg5 {[%clk 0:00:56]} 62. Ne5+ {[%clk 0:00:12]}  Kh5 {[%clk 0:00:54]} 63. g4+ {[%clk 0:00:12]}  Kh4 {[%clk 0:00:53]} 64. Kf5 {[%clk 0:00:13]}  Nh3 {[%clk 0:00:49]} 65. Nf3+ {[%clk 0:00:13]}  Kg3 {[%clk 0:00:49]} 66. Ne5 {[%clk 0:00:12]}  Kh4 {[%clk 0:00:45]} 67. Ng6+ {[%clk 0:00:12]}  Kg3 {[%clk 0:00:44]} 68. g5 {[%clk 0:00:13]}  Kf3 {[%clk 0:00:37]} 69. Ne5+ {[%clk 0:00:13]}  Ke3 {[%clk 0:00:31]} 70. g6 {[%clk 0:00:13]}  Nf4 {[%clk 0:00:29]} 71. g7 {[%clk 0:00:13]}  Nd5 {[%clk 0:00:30]} 72. Ke6 {[%clk 0:00:12]}  Nc7+ {[%clk 0:00:15]} 73. Kf7 {[%clk 0:00:12]}  Ke4 {[%clk 0:00:14]} 74. g8=Q {[%clk 0:00:12]}  Kxe5 {[%clk 0:00:14]} 75. Qb8 {[%clk 0:00:12]}  Kd5 {[%clk 0:00:15]} 76. Qxc7 {[%clk 0:00:12]} 1-0


[Site "https://www.chess.com"]

[Event "Titled Tuesday Blitz May 03 Early 2022"]
[White "Hovhannisyan, Robert"]
[Black "Omariev, Maksim"]
[WhiteFideId "13302507"]
[BlackFideId "4193423"]
[WhiteElo "2570"]
[BlackElo "2507"]
[Result "1-0"]
[Round "01"]
[TimeControl "180+1"]
[Date "2022.05.03"]
[WhiteClock "0:00:08"]
[BlackClock "0:00:01"]

1. d4 {[%clk 0:03:00]}  h5 {[%clk 0:02:33]} 2. e4 {[%clk 0:02:59]}  h4 {[%clk 0:02:34]} 3. h3 {[%clk 0:02:56]}  c6 {[%clk 0:02:35]} 4. Bd3 {[%clk 0:02:52]}  d5 {[%clk 0:02:34]} 5. Nc3 {[%clk 0:02:48]}  dxe4 {[%clk 0:02:33]} 6. Nxe4 {[%clk 0:02:49]}  Bf5 {[%clk 0:02:32]} 7. Nf3 {[%clk 0:02:46]}  e6 {[%clk 0:02:30]} 8. Bf4 {[%clk 0:02:43]}  Qb6 {[%clk 0:02:21]} 9. Nd6+ {[%clk 0:02:32]}  Bxd6 {[%clk 0:02:20]} 10. Bxd6 {[%clk 0:02:33]}  Qxb2 {[%clk 0:02:20]} 11. O-O {[%clk 0:02:23]}  Bxd3 {[%clk 0:02:13]} 12. Qxd3 {[%clk 0:02:24]}  Qb5 {[%clk 0:02:14]} 13. c4 {[%clk 0:02:20]}  Qf5 {[%clk 0:02:07]} 14. Qb3 {[%clk 0:02:18]}  b6 {[%clk 0:02:03]} 15. Rfe1 {[%clk 0:02:06]}  Ne7 {[%clk 0:01:50]} 16. d5 {[%clk 0:01:53]}  cxd5 {[%clk 0:01:46]} 17. Bxe7 {[%clk 0:01:53]}  Kxe7 {[%clk 0:01:46]} 18. cxd5 {[%clk 0:01:53]}  Nd7 {[%clk 0:01:44]} 19. dxe6 {[%clk 0:01:52]}  Nc5 {[%clk 0:01:42]} 20. exf7+ {[%clk 0:01:49]}  Kf8 {[%clk 0:01:42]} 21. Re8+ {[%clk 0:01:11]}  Rxe8 {[%clk 0:01:40]} 22. fxe8=Q+ {[%clk 0:01:12]}  Kxe8 {[%clk 0:01:40]} 23. Re1+ {[%clk 0:01:12]}  Kd8 {[%clk 0:01:31]} 24. Qe3 {[%clk 0:01:08]}  Kc7 {[%clk 0:01:23]} 25. Nd4 {[%clk 0:01:09]}  Qd7 {[%clk 0:01:19]} 26. Qe5+ {[%clk 0:00:43]}  Kb7 {[%clk 0:01:19]} 27. Nf5 {[%clk 0:00:43]}  Rd8 {[%clk 0:00:35]} 28. Nxh4 {[%clk 0:00:34]}  Qd2 {[%clk 0:00:26]} 29. Nf3 {[%clk 0:00:29]}  Qh6 {[%clk 0:00:17]} 30. Qe3 {[%clk 0:00:20]}  Qf6 {[%clk 0:00:12]} 31. Qe7+ {[%clk 0:00:19]}  Rd7 {[%clk 0:00:06]} 32. Qxf6 {[%clk 0:00:19]}  gxf6 {[%clk 0:00:07]} 33. h4 {[%clk 0:00:19]}  a5 {[%clk 0:00:07]} 34. g4 {[%clk 0:00:16]}  a4 {[%clk 0:00:06]} 35. Kg2 {[%clk 0:00:16]}  b5 {[%clk 0:00:07]} 36. h5 {[%clk 0:00:15]}  b4 {[%clk 0:00:07]} 37. Rb1 {[%clk 0:00:13]}  b3 {[%clk 0:00:07]} 38. axb3 {[%clk 0:00:14]}  axb3 {[%clk 0:00:05]} 39. Kg3 {[%clk 0:00:15]}  Kc6 {[%clk 0:00:06]} 40. Nh4 {[%clk 0:00:11]}  Kb5 {[%clk 0:00:06]} 41. Nf5 {[%clk 0:00:10]}  Kb4 {[%clk 0:00:05]} 42. h6 {[%clk 0:00:11]}  Kc3 {[%clk 0:00:03]} 43. Kh4 {[%clk 0:00:11]}  Kc2 {[%clk 0:00:03]} 44. Rh1 {[%clk 0:00:09]}  b2 {[%clk 0:00:04]} 45. Ne3+ {[%clk 0:00:10]}  Kc3 {[%clk 0:00:03]} 46. Kh5 {[%clk 0:00:08]}  Ne4 {[%clk 0:00:04]} 47. Nd1+ {[%clk 0:00:04]}  Kc2 {[%clk 0:00:03]} 48. Nxb2 {[%clk 0:00:04]}  Kxb2 {[%clk 0:00:03]} 49. Kg6 {[%clk 0:00:04]}  Nxf2 {[%clk 0:00:02]} 50. Rh2 {[%clk 0:00:04]}  Rd2 {[%clk 0:00:03]} 51. h7 {[%clk 0:00:05]}  Rd8 {[%clk 0:00:01]} 52. Rxf2+ {[%clk 0:00:04]}  Kc3 {[%clk 0:00:02]} 53. Rxf6 {[%clk 0:00:05]}  Kd4 {[%clk 0:00:02]} 54. g5 {[%clk 0:00:06]}  Ke5 {[%clk 0:00:03]} 55. Kg7 {[%clk 0:00:06]}  Rc8 {[%clk 0:00:02]} 56. Rf7 {[%clk 0:00:06]}  Ke6 {[%clk 0:00:02]} 57. g6 {[%clk 0:00:07]}  Re8 {[%clk 0:00:01]} 58. h8=Q {[%clk 0:00:08]} 1-0


[Site "https://www.chess.com"]